bitfinex-derivatives/quotes_SOLF0:USTF0_20241222
["timestamp","ask_amount","ask_price","bid_price","bid_amount"]
[1734873781574,2.6877,186.15,186.08,4.3431]
[1734873781774,1.6683,186.18,186.06,1.94065407]
[1734873781976,1.6683,186.18,186.07,2.62]
[1734873782474,1.6683,186.18,186.06,1.94065407]
[1734873782868,2.6881,186.12,186.06,4.62955407]
[1734873783972,9.42179477,186.11,186.06,4.62955407]
[1734873784383,2.6881,186.12,186.06,4.62955407]
[1734873784677,2.6881,186.12,186.07,2.6888]
[1734873784975,2.6881,186.12,186.06,1.94065407]
[1734873785473,2.6881,186.12,186.07,2.6888]
[1734873787678,2.6881,186.12,186.06,1.94065407]
[1734873787877,2.6881,186.12,186.06,4.62965407]
[1734873788478,2.6881,186.12,186.07,2.6889]
[1734873793277,2.62,186.16,186.09,2.6884]
[1734873793481,2.62,186.16,186.06,1.94065407]
[1734873793682,1.6683,186.18,186.06,1.94065407]
[1734873793880,2.62,186.17,186.06,1.94065407]
[1734873794083,2.62,186.17,186.09,2.6885]
[1734873794280,2.62,186.17,186.06,1.94065407]
[1734873795385,2.62,186.17,186.1,2.6883]
[1734873795584,1.6683,186.18,186.06,1.94065407]
[1734873795988,1.6683,186.18,186.07,1.6013]
[1734873796184,1.6383,186.19,186.07,1.6013]
[1734873796383,1.6383,186.19,186.08,1.6391]
[1734873796586,1.6383,186.19,186.14,2.6877]
[1734873797788,4.3255,186.19,186.14,2.6877]
[1734873800194,1.6383,186.19,186.09,2.62]
[1734873800493,1.6383,186.19,186.08,1.6391]
[1734873800695,1.6383,186.19,186.09,2.62]
[1734873801293,2.6875,186.17,186.12,2.6881]
[1734873803794,1.6383,186.19,186.09,2.62]
[1734873804094,2.6876,186.16,186.11,2.6883]
[1734873804289,1.6383,186.19,186.09,2.62]
[1734873804686,2.6879,186.14,186.09,5.3085]
[1734873805094,2.6877,186.15,186.1,2.6884]
[1734873806197,2.62,186.18,186.1,2.6884]
[1734873806796,2.6878,186.15,186.1,2.6884]
[1734873808001,2.6874,186.17,186.12,2.688]
[1734873808601,2.6874,186.17,186.09,2.62]
[1734873808799,2.6874,186.17,186.13,2.688]
[1734873809801,2.6873,186.18,186.14,2.6878]
[1734873810601,4.3254,186.19,186.15,2.6876]
[1734873810804,4.3254,186.19,186.09,2.62]
[1734873811401,4.3254,186.19,186.15,2.6877]
[1734873811601,1.6383,186.19,186.15,2.6877]
[1734873812103,1.7094,186.24,186.14,2.62]
[1734873814201,2.6866,186.23,186.18,2.6871]
[1734873816107,3.2443,186.27,186.16,2.62]
[1734873816406,2.6864,186.24,186.16,2.62]
[1734873816604,3.2443,186.27,186.16,2.62]
[1734873816905,2.6864,186.25,186.19,2.687]
[1734873817302,2.6864,186.25,186.16,2.62]
[1734873818206,2.6864,186.25,186.2,2.6869]
[1734873818602,2.6862,186.26,186.16,2.62]
[1734873818805,2.6862,186.26,186.21,2.6867]
[1734873819909,0.26494,186.29,186.21,2.62]
[1734873821411,5.9904,186.33,186.21,2.62]
[1734873822210,2.6851,186.33,186.27,2.6859]
[1734873822412,2.6851,186.33,186.27,2.62]
[1734873822709,2.6853,186.32,186.27,2.62]
[1734873823314,2.62,186.37,186.27,2.62]
[1734873823515,2.6856,186.3,186.25,2.6861]
[1734873823812,2.62,186.37,186.24,2.62]
[1734873824016,2.62,186.37,186.25,2.6862]
[1734873824215,2.62,186.37,186.24,2.62]
[1734873824416,0.28778,186.35,186.24,2.62]
[1734873824716,2.6854,186.31,186.26,2.686]
[1734873826317,2.6854,186.31,186.27,2.6859]
[1734873827010,2.6851,186.33,186.29,2.6856]
[1734873827710,2.685,186.34,186.3,2.6855]
[1734873827913,0.28778,186.35,186.25,1.6923]
[1734873828313,2.97258,186.35,186.31,2.6853]
[1734873828514,0.28778,186.35,186.3,2.62]
[1734873828809,0.28778,186.35,186.31,2.6854]
[1734873829911,0.28778,186.35,186.32,2.6851]
[1734873830116,0.28778,186.35,186.3,2.62]
[1734873830311,2.685,186.34,186.3,2.62]
[1734873830517,0.28778,186.35,186.28,2.6858]
[1734873831017,0.28778,186.35,186.27,2.62]
[1734873831218,0.28778,186.35,186.26,2.686]
[1734873831418,2.6854,186.31,186.25,4.3123]
[1734873831618,2.6854,186.31,186.27,2.6859]
[1734873832120,294.87554827,186.3,186.27,2.6859]
[1734873833823,294.87554827,186.3,186.28,2.6858]
[1734873836722,294.87554827,186.3,186.27,2.62]
[1734873836924,294.87554827,186.3,186.27,5.3059]
[1734873837127,294.87554827,186.3,186.25,1.6923]
[1734873837423,297.56114827,186.3,186.25,5.3061]
[1734873837620,297.56114827,186.3,186.25,2.6861]
[1734873837826,297.56114827,186.3,186.25,5.3061]
[1734873838026,294.87554827,186.3,186.25,2.62]
[1734873838526,294.87554827,186.3,186.28,2.6857]
[1734873838921,294.87554827,186.3,186.25,2.62]
[1734873839528,297.56114827,186.3,186.26,2.6861]
[1734873839727,294.87554827,186.3,186.26,2.6861]
[1734873840429,294.87554827,186.3,186.25,2.62]
[1734873840630,294.87554827,186.3,186.22,2.62]
[1734873840829,2.686,186.27,186.22,2.62]
[1734873841030,2.686,186.27,186.22,5.3066]
[1734873841230,294.87554827,186.3,186.22,2.62]
[1734873841525,294.87554827,186.3,186.22,2.6866]
[1734873841731,294.87554827,186.3,186.18,1.6679]
[1734873841933,294.87554827,186.3,186.19,2.62]
[1734873842536,2.6861,186.27,186.22,2.6867]
[1734873842834,294.87554827,186.3,186.22,2.6867]
[1734873843035,294.87554827,186.3,186.18,1.6679]
[1734873843233,2.6864,186.24,186.19,5.3071]
[1734873843733,2.6863,186.25,186.2,2.6869]
[1734873843934,2.62,186.28,186.11,1.7076]
[1734873844136,2.62,186.28,186.12,5.89]
[1734873844339,2.6865,186.24,186.16,2.6875]
[1734873844543,2.62,186.28,186.17,2.62]
[1734873844943,2.6866,186.23,186.17,5.3073]
[1734873845443,2.62,186.28,186.17,5.3073]
[1734873845644,2.62,186.28,186.18,2.6872]
[1734873846139,2.6866,186.23,186.17,2.62]
[1734873846348,2.6866,186.23,186.19,2.6871]
[1734873847044,2.6866,186.23,186.17,2.62]
[1734873847045,2.62,186.28,186.17,2.62]
[1734873847342,2.6863,186.25,186.21,2.6868]
[1734873847546,2.62,186.28,186.17,2.62]
[1734873847737,1.5904,186.29,186.17,2.62]
[1734873847941,2.6861,186.26,186.2,2.6869]
[1734873848146,2.6861,186.26,186.17,2.62]
[1734873849448,2.6861,186.26,186.21,2.6867]
[1734873850048,1.5904,186.29,186.23,2.6865]
[1734873850250,294.87554827,186.3,186.22,2.62]
[1734873850440,294.87554827,186.3,186.23,2.62]
[1734873850646,294.87554827,186.3,186.28,2.6858]
[1734873851750,294.87554827,186.3,186.29,2.6857]
[1734873853652,294.87554827,186.3,186.28,2.62]
[1734873853653,1.5853,186.37,186.28,2.62]
[1734873853851,2.6849,186.35,186.28,2.62]
[1734873854153,1.5853,186.37,186.28,2.62]
[1734873854356,2.6848,186.36,186.3,2.6854]
[1734873854754,1.5853,186.37,186.28,2.62]
[1734873854947,1.5853,186.37,186.32,2.6852]
[1734873855555,4.2699,186.37,186.32,2.6852]
[1734873856252,1.5853,186.37,186.32,2.6852]
[1734873857753,4.2699,186.37,186.32,2.6852]
[1734873858852,1.5853,186.37,186.32,2.6852]
[1734873859051,3.291,186.39,186.33,2.62]
[1734873859257,2.62,186.43,186.33,2.62]
[1734873859551,2.684,186.42,186.37,2.6845]
[1734873860051,7.6312,186.46,186.37,2.6845]
[1734873860456,5.0112,186.46,186.38,2.6844]
[1734873860656,5.0112,186.46,186.38,2.62]
[1734873860958,2.6834,186.45,186.38,2.62]
[1734873861158,2.6834,186.45,186.4,2.6841]
[1734873861758,2.6834,186.45,186.41,2.6839]
[1734873861951,2.6836,186.44,186.38,2.62]
[1734873862460,2.6834,186.45,186.4,2.684]
[1734873862960,2.6834,186.45,186.38,2.62]
[1734873863159,2.6834,186.45,186.41,2.6839]
[1734873863860,7.6944,186.46,186.42,2.6837]
[1734873864558,5.0112,186.46,186.38,2.62]
[1734873864760,5.0112,186.46,186.43,2.6837]
[1734873865561,3.2949,186.46,186.43,2.6837]
[1734873867360,3.2949,186.46,186.41,2.6838]
[1734873867361,5.9783,186.46,186.41,2.6838]
[1734873867561,3.2949,186.46,186.38,2.62]
[1734873868466,2.6835,186.44,186.4,2.6841]
[1734873869367,3.2949,186.46,186.4,2.6841]
[1734873869561,2.6834,186.45,186.4,2.6841]
[1734873871066,5.9782,186.46,186.41,2.684]
[1734873874168,2.6833,186.46,186.38,2.62]
[1734873874368,0.35721,186.47,186.38,2.62]
[1734873874568,0.35721,186.47,186.39,1.6269]
[1734873875369,0.35721,186.47,186.39,3.3364]
[1734873875571,0.35721,186.47,186.39,4.9209]
[1734873876372,0.35721,186.47,186.46,2.6832]
[1734873879173,0.35721,186.47,186.39,4.9209]
[1734873879366,0.35721,186.47,186.4,2.62]
[1734873880064,5.9254,186.54,186.4,2.62]
[1734873880773,22.0854,186.54,186.32,3.28]
[1734873880973,22.0854,186.54,186.33,4.3149]
[1734873881573,2.6838,186.43,186.38,2.6843]
[1734873881774,2.62,186.47,186.38,2.62]
[1734873881971,2.62,186.53,186.38,2.62]
[1734873882277,2.6829,186.49,186.38,2.62]
[1734873882674,2.62,186.53,186.38,2.62]
[1734873882876,2.6826,186.51,186.38,2.62]
[1734873883174,2.6826,186.51,186.39,3.3418]
[1734873884074,2.6826,186.51,186.46,2.6832]
[1734873885175,2.6824,186.53,186.47,2.683]
[1734873885377,3.3196,186.56,186.47,2.683]
[1734873885974,2.6822,186.54,186.47,2.683]
[1734873886176,3.3196,186.56,186.47,2.683]
[1734873887577,2.6824,186.52,186.44,2.62]
[1734873888077,2.6824,186.52,186.46,2.6832]
[1734873888277,2.6824,186.52,186.44,2.62]
[1734873889278,3.3196,186.56,186.44,2.62]
[1734873889474,2.6825,186.51,186.44,2.62]
[1734873889780,3.3196,186.56,186.44,2.6835]
[1734873890081,3.3196,186.56,186.27,104.48531014]
[1734873890279,3.3196,186.56,186.31,7.5539]
[1734873890478,2.6835,186.45,186.4,2.6841]
[1734873890774,2.62,186.49,186.39,2.62]
[1734873891480,2.6832,186.46,186.41,2.6838]
[1734873891781,2.62,186.49,186.39,2.62]
[1734873892179,2.62,186.52,186.39,2.62]
[1734873892382,3.3196,186.56,186.39,2.62]
[1734873892581,2.62,186.55,186.4,1.642]
[1734873892779,2.6828,186.5,186.4,1.642]
[1734873893781,2.6828,186.5,186.44,2.6834]
[1734873894182,2.6828,186.5,186.44,5.3034]
[1734873894784,1.6036,186.54,186.44,2.62]
[1734873894981,2.6831,186.48,186.44,2.62]
[1734873895183,1.6036,186.54,186.44,2.62]
[1734873895583,2.6828,186.5,186.45,2.6834]
[1734873895883,1.6036,186.54,186.45,2.6834]
[1734873896178,1.6036,186.54,186.44,2.62]
[1734873896383,2.683,186.48,186.44,2.62]
[1734873896579,2.683,186.48,186.43,2.6835]
[1734873896785,1.6036,186.54,186.43,2.6835]
[1734873896987,1.6036,186.54,186.41,5.3038]
[1734873897177,1.6036,186.54,186.32,1.6238]
[1734873897678,1.6036,186.54,186.33,2.62]
[1734873897983,1.6036,186.54,186.42,2.6837]
[1734873898183,1.6036,186.54,186.38,2.62]
[1734873898583,2.6835,186.45,186.41,2.6839]
[1734873900088,2.6832,186.47,186.42,2.6838]
[1734873900386,3.1955,186.48,186.38,2.62]
[1734873900684,2.6834,186.46,186.41,2.6839]
[1734873900982,3.1955,186.48,186.32,1.6238]
[1734873901187,2.6842,186.4,186.33,2.62]
[1734873901387,1.6367,186.47,186.33,2.62]
[1734873901588,3.1955,186.48,186.33,2.62]
[1734873902188,2.6836,186.44,186.39,2.6842]
[1734873902488,3.1955,186.48,186.38,2.62]
[1734873902688,3.1955,186.48,186.37,2.62]
[1734873903392,2.6832,186.47,186.4,2.6841]
[1734873903691,3.1955,186.48,186.37,2.62]
[1734873903991,5.8785,186.48,186.37,2.62]
[1734873904793,5.8785,186.48,186.42,2.6837]
[1734873905193,5.8785,186.48,186.37,2.62]
[1734873905796,5.8785,186.48,186.4,2.6841]
[1734873905997,5.8785,186.48,186.37,2.62]
[1734873907394,5.8785,186.48,186.43,2.6836]
[1734873912501,5.8785,186.48,186.37,2.62]
[1734873912701,5.8785,186.48,186.44,2.6835]
[1734873914405,1.598,186.48,186.41,2.62]
[1734873914604,1.6367,186.52,186.46,2.6832]
[1734873914798,1.6367,186.52,186.41,2.62]
[1734873915205,2.6828,186.5,186.46,2.6832]
[1734873916206,2.683,186.48,186.41,2.62]
[1734873916507,2.683,186.48,186.44,2.6834]
[1734873916709,2.683,186.48,186.41,2.62]
[1734873916910,2.6828,186.49,186.45,2.6833]
[1734873917410,2.683,186.48,186.41,2.62]
[1734873917606,1.6367,186.52,186.41,2.62]
[1734873918408,2.6828,186.49,186.45,2.6834]
[1734873919609,2.6828,186.49,186.44,2.6835]
[1734873919910,1.6367,186.52,186.44,2.6835]
[1734873920105,2.683,186.48,186.44,2.6835]
[1734873921407,1.6367,186.52,186.41,2.62]
[1734873921612,2.6828,186.49,186.45,2.6834]
[1734873921809,3.2028,186.53,186.41,2.62]
[1734873922306,5.885,186.53,186.42,1.6386]
[1734873922807,3.2028,186.53,186.42,1.6386]
[1734873923013,2.6826,186.51,186.46,2.6831]
[1734873925512,3.2028,186.53,186.42,1.6386]
[1734873925713,3.2028,186.53,186.49,2.6828]
[1734873926914,5.885,186.53,186.49,2.6828]
[1734873927416,0.42557,186.57,186.48,2.62]
[1734873928517,0.42557,186.57,186.53,2.6821]
[1734873929017,0.42557,186.57,186.48,2.62]
[1734873929415,3.10727,186.57,186.48,2.62]
[1734873929616,0.42557,186.57,186.48,2.62]
[1734873929916,2.6815,186.58,186.54,2.682]
[1734873930419,2.6815,186.58,186.48,2.62]
[1734873930618,7.5702,186.63,186.55,2.6819]
[1734873931119,2.6815,186.59,186.55,2.6819]
[1734873934417,0.45118,186.63,186.53,2.62]
[1734873934921,0.45118,186.63,186.58,2.6815]
[1734873934922,2.6811,186.62,186.58,2.6815]
[1734873936721,3.13198,186.63,186.58,2.6815]
[1734873937123,0.45118,186.63,186.6,2.6812]
[1734873938025,0.45118,186.63,186.55,2.62]
[1734873938221,3.13198,186.63,186.59,2.6813]
[1734873938728,0.45118,186.63,186.55,2.62]
[1734873939625,0.45118,186.63,186.58,2.6815]
[1734873939824,0.45118,186.63,186.49,1.63]
[1734873940028,2.6817,186.57,186.53,2.6822]
[1734873940317,3.07118,186.63,186.5,2.62]
[1734873940523,2.682,186.55,186.5,2.6826]
[1734873940724,2.682,186.55,186.49,2.62]
[1734873940923,2.682,186.55,186.48,2.62]
[1734873941123,2.6818,186.56,186.51,2.6825]
[1734873942326,2.6818,186.56,186.52,2.6823]
[1734873943526,2.62,186.58,186.52,2.6823]
[1734873943727,2.6817,186.57,186.52,2.6823]
[1734873944128,2.6817,186.57,186.53,2.6822]
[1734873946330,2.6817,186.57,186.48,2.62]
[1734873946726,2.6815,186.58,186.48,2.62]
[1734873946927,2.6815,186.58,186.54,2.6821]
[1734873947230,2.6814,186.6,186.49,1.7174]
[1734873947431,2.62,186.61,186.55,2.6819]
[1734873947933,2.6814,186.59,186.55,2.6819]
[1734873948533,2.6818,186.57,186.53,2.6822]
[1734873949231,2.6819,186.56,186.52,2.6824]
[1734873950033,4.7882,186.6,186.52,2.6824]
[1734873950233,4.7882,186.6,186.44,64.666]
[1734873950433,4.7882,186.6,186.45,2.62]
[1734873950626,2.6822,186.53,186.49,2.6827]
[1734873951434,2.6821,186.54,186.5,2.6826]
[1734873953434,2.6818,186.56,186.52,2.6824]
[1734873953637,2.6818,186.56,186.47,2.62]
[1734873954034,2.6818,186.56,186.49,2.6827]
[1734873954235,2.6817,186.57,186.48,1.6965]
[1734873954735,2.6817,186.57,186.5,2.6826]
[1734873955038,2.6817,186.57,186.48,1.6965]
[1734873955039,7.4082,186.6,186.48,1.6965]
[1734873955235,3.2191,186.6,186.48,1.6965]
[1734873956134,3.2191,186.6,186.53,2.6821]
[1734873956135,2.6818,186.57,186.53,2.6821]
[1734873957237,3.2191,186.6,186.51,2.6824]
[1734873958238,3.2191,186.6,186.48,1.6965]
[1734873958435,2.6819,186.56,186.52,2.6824]
[1734873958937,3.2191,186.6,186.48,1.6965]
[1734873959740,2.6818,186.56,186.52,2.6823]
[1734873960438,3.2191,186.6,186.48,1.6965]
[1734873961137,2.6819,186.56,186.48,1.6965]
[1734873961738,2.6819,186.56,186.51,2.6824]
[1734873963139,3.2191,186.6,186.48,1.6965]
[1734873963339,2.6815,186.58,186.54,2.682]
[1734873963738,2.62,186.62,186.52,2.62]
[1734873964040,2.6813,186.6,186.52,2.62]
[1734873964343,2.62,186.62,186.52,2.62]
[1734873964640,0.45118,186.63,186.52,2.62]
[1734873964842,0.45118,186.63,186.53,1.6284]
[1734873965143,2.6811,186.61,186.57,2.6816]
[1734873967143,3.13208,186.63,186.59,2.6813]
[1734873967938,3.13208,186.63,186.53,1.6284]
[1734873968144,0.45118,186.63,186.53,1.6284]
[1734873968643,2.6814,186.59,186.55,2.6819]
[1734873971950,2.6812,186.61,186.56,2.6818]
[1734873972349,0.45118,186.63,186.56,2.6818]
[1734873972548,2.6811,186.61,186.56,2.6818]
[1734873972848,0.45118,186.63,186.56,2.6818]
[1734873973048,2.6811,186.61,186.56,2.6818]
[1734873974845,2.6811,186.61,186.53,4.2484]
[1734873975147,2.681,186.62,186.53,4.2484]
[1734873975549,2.681,186.62,186.58,2.6814]
[1734873976248,2.6808,186.63,186.59,2.6813]
[1734873976650,1.6413,186.65,186.53,4.2484]
[1734873976849,2.6807,186.64,186.54,1.6079]
[1734873977048,0.48531,186.69,186.54,1.6079]
[1734873977249,0.48531,186.69,186.55,1.688]
[1734873977650,2.6802,186.67,186.55,1.688]
[1734873978152,2.6802,186.67,186.63,2.6808]
[1734873979456,2.6804,186.66,186.62,2.6809]
[1734873981752,0.48531,186.69,186.63,2.6808]
[1734873981953,2.6801,186.68,186.61,2.62]
[1734873982855,0.48531,186.69,186.55,1.688]
[1734873983058,0.48531,186.69,186.56,2.62]
[1734873984456,2.6804,186.66,186.62,2.6808]
[1734873986356,2.6806,186.65,186.61,2.62]
[1734873986552,2.62,186.68,186.55,1.688]
[1734873986757,1.6136,186.67,186.56,2.62]
[1734873987160,2.6807,186.64,186.59,2.6814]
[1734873987858,2.6807,186.64,186.56,2.62]
[1734873988057,2.6807,186.64,186.6,2.6812]
[1734873988453,2.6807,186.64,186.56,2.62]
[1734873988659,2.6809,186.63,186.56,2.62]
[1734873989058,2.6809,186.63,186.58,2.6814]
[1734873990354,1.6136,186.67,186.56,2.62]
[1734873990559,2.681,186.62,186.57,2.6816]
[1734873992260,1.7146,186.66,186.55,1.688]
[1734873992562,1.7146,186.66,186.54,4.39386037]
[1734873993058,2.6809,186.63,186.56,2.6817]
[1734873993264,1.7146,186.66,186.54,4.39386037]
[1734873993762,2.681,186.62,186.58,2.6815]
[1734873993964,1.7146,186.66,186.54,4.39386037]
[1734873994466,1.7146,186.66,186.54,1.79386037]
[1734873994966,2.682,186.55,186.51,2.6825]
[1734873995169,2.682,186.55,186.49,4.2719]
[1734873995361,2.6,186.6,186.38,43.05223828]
[1734873995558,19.4364,186.59,186.39,1.7165]
[1734873995961,16.16,186.57,186.39,1.7165]
[1734873996264,2.6837,186.43,186.38,43.05223828]
[1734873996464,2.6837,186.43,186.37,2.6]
[1734873996664,2.6837,186.43,186.37,5.2845]
[1734873997264,2.6838,186.42,186.37,2.6]
[1734873997466,2.6,186.47,186.33,1.7165]
[1734873997467,3.3043,186.46,186.33,1.7165]
[1734873997666,5.0094,186.46,186.34,2.6]
[1734873998068,2.684,186.41,186.34,2.6]
[1734873998265,5.0094,186.46,186.34,2.6]
[1734873998561,2.6841,186.4,186.33,4.4015]
[1734873998762,2.6841,186.4,186.33,2.685]
[1734873998962,2.6841,186.4,186.2,61.34]
[1734873998963,2.6,186.42,186.29,5.28006641]
[1734873999165,2.6,186.41,186.29,5.28006641]
[1734873999467,2.6,186.4,186.29,5.28006641]
[1734873999766,2.6843,186.39,186.31,2.6854]
[1734873999965,2.6,186.4,186.31,2.6854]
[1734874000167,2.6,186.4,186.29,2.59446641]
[1734874000366,2.6,186.4,186.29,5.28006641]
[1734874000367,2.6847,186.36,186.29,5.28006641]
[1734874000869,2.6848,186.35,186.29,2.59446641]
[1734874002068,2.685,186.34,186.29,2.59446641]
[1734874002269,2.6,186.4,186.29,2.59446641]
[1734874002568,2.6,186.4,186.21,5.1226]
[1734874002769,2.6,186.4,186.26,2.6861]
[1734874003167,2.6,186.4,186.22,2.62]
[1734874003471,2.6,186.4,186.23,2.62]
[1734874003768,2.6848,186.35,186.23,2.62]
[1734874004370,2.6847,186.36,186.29,2.6857]
[1734874009469,2.6847,186.36,186.28,2.62]
[1734874009674,2.62,186.38,186.28,2.62]
[1734874009871,2.62,186.41,186.28,2.62]
[1734874010179,2.62,186.44,186.29,3.3335]
[1734874010475,2.62,186.44,186.29,5.0209]
[1734874010669,2.62,186.44,186.38,2.6843]
[1734874010976,5.0094,186.46,186.36,2.62]
[1734874011168,5.0094,186.46,186.37,2.62]
[1734874011469,5.0094,186.46,186.38,2.62]
[1734874011669,16.13,186.57,186.38,2.62]
[1734874011869,0.34581,186.46,186.39,1.677]
[1734874012072,0.34581,186.46,186.39,3.3335]
[1734874012369,0.34581,186.46,186.39,4.9498]
[1734874013075,0.34581,186.46,186.45,2.6834]
[1734874013277,0.34581,186.46,186.45,5.3034]
[1734874014276,1.5847,186.53,186.45,2.62]
[1734874014474,1.5712,186.56,186.49,2.6827]
[1734874014780,1.5712,186.56,186.45,2.62]
[1734874015180,1.6272,186.58,186.45,2.62]
[1734874015778,2.682,186.55,186.49,2.6827]
[1734874015976,2.682,186.55,186.45,2.62]
[1734874015977,2.62,186.56,186.46,2.62]
[1734874016172,3.2989,186.55,186.46,2.62]
[1734874016879,3.2989,186.55,186.45,2.6833]
[1734874017182,3.2989,186.55,186.39,5.9535]
[1734874018078,2.6828,186.5,186.43,2.6835]
[1734874018479,3.2989,186.55,186.43,2.6835]
[1734874018879,3.2989,186.55,186.41,2.6838]
[1734874019580,3.2989,186.55,186.4,2.62]
[1734874019781,2.6832,186.47,186.42,2.6838]
[1734874019977,2.6832,186.47,186.4,2.62]
[1734874020282,2.62,186.49,186.43,2.6837]
[1734874020483,2.62,186.49,186.4,2.62]
[1734874020982,2.6831,186.47,186.4,2.62]
[1734874021280,2.62,186.49,186.4,2.62]
[1734874021488,2.6833,186.46,186.42,2.6838]
[1734874021779,2.62,186.49,186.42,2.6838]
[1734874022480,2.6831,186.47,186.42,2.6838]
[1734874022680,2.62,186.5,186.43,2.6836]
[1734874023184,2.6831,186.47,186.43,2.6836]
[1734874023481,2.62,186.5,186.43,2.6836]
[1734874023683,2.6831,186.47,186.43,2.6836]
[1734874023884,2.6831,186.47,186.42,2.6838]
[1734874025083,2.62,186.5,186.4,2.62]
[1734874025282,2.6834,186.46,186.41,2.6839]
[1734874025482,1.67,186.49,186.34,1.6138]
[1734874025784,2.6839,186.42,186.34,1.6138]
[1734874026091,2.62,186.45,186.35,2.62]
[1734874026282,2.62,186.46,186.35,4.2254]
[1734874026473,4.29,186.49,186.35,4.2254]
[1734874026675,4.29,186.49,186.35,1.6054]
[1734874026874,2.683,186.48,186.36,2.62]
[1734874027583,2.683,186.48,186.42,2.6837]
[1734874028585,4.29,186.49,186.42,2.6837]
[1734874028883,2.6831,186.47,186.42,2.6837]
[1734874029981,4.29,186.49,186.4,2.62]
[1734874030887,2.6832,186.47,186.42,2.6838]
[1734874034289,2.6826,186.51,186.4,2.62]
[1734874034489,3.2989,186.55,186.4,2.62]
[1734874034882,2.6821,186.54,186.49,2.6827]
[1734874035189,3.2989,186.55,186.47,2.62]
[1734874035593,2.6823,186.53,186.49,2.6828]
[1734874036491,2.6821,186.54,186.5,2.6826]
[1734874036990,3.2989,186.55,186.47,2.62]
[1734874038492,2.6823,186.53,186.49,2.6828]
[1734874038990,3.2989,186.55,186.49,2.6828]
[1734874039290,2.6823,186.53,186.49,2.6828]
[1734874039790,3.2989,186.55,186.47,2.62]
[1734874039990,3.2989,186.55,186.43,1.5875]
[1734874040286,3.2989,186.55,186.44,2.6]
[1734874040494,3.2989,186.55,186.41,2.6]
[1734874041191,2.6832,186.47,186.43,2.6836]
[1734874041592,2.6,186.51,186.41,2.6]
[1734874041890,2.6828,186.5,186.41,2.6]
[1734874042291,2.6826,186.51,186.48,2.6829]
[1734874042485,2.6,186.54,186.48,2.6829]
[1734874042992,3.2989,186.55,186.38,1.7303]
[1734874043190,2.6823,186.53,186.49,2.6827]
[1734874045493,2.6821,186.54,186.51,2.6825]
[1734874045795,1.6132,186.55,186.46,2.6]
[1734874045996,2.6828,186.49,186.38,1.7303]
[1734874046193,2.6828,186.49,186.39,2.6]
[1734874046389,1.5731,186.54,186.39,2.6]
[1734874046594,2.6827,186.5,186.45,2.6833]
[1734874046994,2.6827,186.5,186.44,2.6]
[1734874047697,2.6828,186.49,186.45,2.6833]
[1734874049093,2.6832,186.47,186.42,2.6838]
[1734874049296,2.6,186.52,186.42,2.6838]
[1734874049592,2.6832,186.47,186.42,2.6838]
[1734874049997,1.6056,186.51,186.41,2.6]
[1734874050293,1.6056,186.51,186.4,2.6841]